bitfinex/quotes_ETHUSD_20240612
["timestamp","ask_amount","ask_price","bid_price","bid_amount"]
[1718178035938,4.2559,3520.9,3520.1,2.4298]
[1718178036234,4.2559,3520.9,3519.9,3.43324001]
[1718178036235,0.869,3520.5,3519.9,2.84096]
[1718178036383,0.869,3520.5,3520.2,0.08685534]
[1718178036578,0.869,3520.5,3519.9,2.84096]
[1718178036780,0.869,3520.5,3520.0,0.08698932]
[1718178037324,0.869,3520.7,3520.0,0.08698932]
[1718178040501,3.3869,3520.9,3520.0,0.08698932]
[1718178040704,0.869,3520.8,3520.0,0.08698932]
[1718178041397,3.0,3520.9,3520.1,2.2976]
[1718178041597,3.0,3520.9,3520.2,0.08685534]
[1718178043810,0.869,3520.8,3520.2,0.08685534]
[1718178044155,0.869,3520.6,3520.2,0.08685534]
[1718178044320,0.869,3520.6,3519.9,5.19896]
[1718178044817,0.670911,3520.7,3520.0,0.08698932]
[1718178045021,1.539911,3520.7,3520.0,0.08698932]
[1718178047459,0.869,3520.7,3520.0,0.08698932]
[1718178052865,3.869,3520.9,3520.0,0.08698932]
[1718178055232,3.0,3520.9,3520.1,2.8408]
[1718178055541,3.0,3520.9,3520.2,2.50387577]
[1718178056547,3.869,3520.9,3520.2,2.50387577]
[1718178063266,3.0,3520.9,3520.3,2.84065]
[1718178063587,0.869,3521.0,3520.4,0.08660556]
[1718178072095,0.869,3521.0,3520.4,0.67888557]
[1718178072395,0.869,3521.0,3520.5,2.3068]
[1718178072555,3.0,3521.3,3520.5,2.3068]
[1718178072757,0.869,3521.1,3520.6,0.08647162]
[1718178078035,3.0,3521.3,3520.6,0.67875163]
[1718178078176,8.359,3521.4,3520.7,2.4877]
[1718178078540,8.359,3521.4,3520.8,0.6785768]
[1718178078872,7.49,3521.4,3521.0,2.4877]
[1718178079318,7.49,3521.4,3521.1,0.08609592]
[1718178079979,8.359,3521.4,3521.1,0.08609592]
[1718178083588,0.869,3521.4,3521.1,0.08609592]
[1718178085185,0.869,3521.2,3521.1,0.08609592]
[1718178086125,0.869,3521.2,3521.1,0.08603462]
[1718178086511,0.869,3521.2,3520.8,2.4377]
[1718178086686,0.869,3521.2,3521.1,0.08603462]
[1718178086887,0.869,3521.2,3520.8,2.4377]
[1718178087095,0.869,3521.2,3521.1,0.08603462]
[1718178087302,0.869,3521.2,3520.8,2.4377]
[1718178087503,0.869,3521.2,3521.1,0.08603462]
[1718178087907,0.869,3521.2,3520.8,2.4377]
[1718178088390,0.869,3521.2,3520.9,0.08616853]
[1718178089927,0.869,3521.2,3520.6,2.98268001]
[1718178090132,0.869,3521.2,3521.0,0.08610158]
[1718178090425,0.869,3521.2,3520.6,2.98268001]
[1718178090632,0.869,3521.2,3521.1,0.08603462]
[1718178091300,1.5601784,3521.2,3521.1,0.08603462]
[1718178091614,1.5601784,3521.2,3520.6,2.98268001]
[1718178091932,0.869,3521.2,3520.6,2.98268001]
[1718178092129,0.869,3521.2,3520.7,0.08630245]
[1718178092329,0.869,3521.0,3520.7,0.08630245]
[1718178092523,0.869,3520.9,3520.7,0.08630245]
[1718178094434,0.869,3520.9,3520.5,0.59228001]
[1718178094608,2.84026,3520.8,3520.5,0.59228001]
[1718178094935,0.869,3520.7,3520.6,0.08636942]
[1718178095452,0.869,3520.7,3520.6,0.08635652]
[1718178095796,0.869,3520.7,3520.2,0.59228001]
[1718178096073,0.869,3520.7,3520.6,0.08635652]
[1718178096247,0.869,3520.7,3520.2,0.59228001]
[1718178096531,0.869,3520.7,3520.3,0.08655744]
[1718178096729,0.869,3520.5,3520.3,0.08655744]
[1718178097398,0.869,3520.5,3520.1,3.03268001]
[1718178097597,0.869,3520.5,3520.4,0.08655447]
[1718178097840,0.869,3520.5,3520.1,3.03268001]
[1718178098046,0.869,3520.5,3520.4,0.08655447]
[1718178098757,0.869,3520.5,3520.4,0.08656469]
[1718178098912,0.869,3520.5,3520.0,0.59228001]
[1718178099114,0.869,3520.5,3520.4,0.08361642]
[1718178100152,0.869,3520.5,3519.9,2.88648001]
[1718178100452,0.869,3520.5,3520.4,0.08087263]
[1718178100744,0.869,3520.5,3520.4,0.08079663]
[1718178100944,0.869,3520.5,3520.0,0.59228001]
[1718178101157,0.869,3520.5,3520.4,0.08079663]
[1718178101355,0.869,3520.5,3519.9,2.88648001]
[1718178101567,2.84044,3520.6,3520.4,0.07808509]
[1718178101846,3.70944,3520.6,3520.4,0.07808509]
[1718178102063,3.70944,3520.6,3520.5,0.07805312]
[1718178102408,3.70944,3520.6,3520.1,0.59228001]
[1718178102608,3.70944,3520.6,3520.5,0.07805312]
[1718178102841,3.70944,3520.6,3520.1,0.59228001]
[1718178103014,2.84044,3520.6,3520.5,0.07805312]
[1718178103424,2.84044,3520.6,3520.5,0.07811852]
[1718178103824,2.84044,3520.6,3520.1,0.59228001]
[1718178104329,2.84044,3520.6,3520.2,0.07831945]
[1718178109141,0.869,3520.7,3520.2,0.07831945]
[1718178111745,0.869,3520.7,3520.0,0.59228001]
[1718178111955,0.869,3520.7,3520.3,0.07825247]
[1718178112151,0.869,3520.7,3520.0,0.59228001]
[1718178112455,0.869,3520.7,3520.4,0.0781855]
[1718178112657,0.869,3520.7,3520.0,0.59228001]
[1718178112861,0.869,3520.7,3520.5,0.07811852]
[1718178113277,0.869,3520.7,3520.6,0.07805155]
[1718178113485,0.869,3520.7,3520.0,0.59228001]
[1718178113782,0.869,3520.7,3520.1,0.07838644]
[1718178114145,0.869,3520.7,3520.2,2.2909]
[1718178114358,0.869,3520.7,3520.2,2.36921945]
[1718178116801,2.4865,3521.0,3520.2,5.20988945]
[1718178116974,0.869,3520.8,3520.2,5.20988945]
[1718178123577,0.869,3520.8,3520.2,5.80216946]
[1718178124090,0.869,3520.8,3520.2,5.20988945]
[1718178124466,0.869,3520.8,3520.2,5.80216946]
[1718178124967,0.869,3520.8,3520.2,5.20988945]
[1718178125166,0.869,3520.8,3520.2,5.80216946]
[1718178125371,3.0,3520.9,3520.2,5.80216946]
[1718178125625,7.49,3521.2,3520.2,5.80216946]
[1718178125626,7.49,3521.2,3520.4,2.84058]
[1718178125799,7.49,3521.2,3520.4,3.43286001]
[1718178126004,7.49,3521.2,3520.5,0.07794259]
[1718178126169,7.49,3521.2,3520.6,2.2662]
[1718178126372,7.49,3521.2,3520.6,2.34407562]
[1718178126612,8.359,3521.2,3520.6,2.34407562]
[1718178130511,0.869,3521.2,3520.6,2.34407562]
[1718178130801,3.869,3521.2,3520.6,2.34407562]
[1718178133020,0.869,3521.2,3520.6,2.34407562]
[1718178134323,3.0,3521.4,3520.6,2.34407562]
[1718178134627,0.869,3521.2,3520.6,2.34407562]
[1718178136330,0.869,3521.2,3520.7,2.89713424]
[1718178136654,3.869,3521.4,3520.7,2.91773242]
[1718178136799,0.869,3521.4,3520.7,2.91773242]
[1718178138404,3.0,3521.5,3520.7,2.91773242]
[1718178138405,3.0,3521.5,3521.0,2.84009]
[1718178138637,0.869,3521.4,3521.0,2.84009]
[1718178138943,0.869,3521.4,3521.1,0.07708051]
[1718178143632,0.869,3521.2,3521.1,0.07708051]
[1718178143833,0.869,3521.2,3520.6,5.69884001]
[1718178144139,0.869,3521.2,3520.6,5.10656]
[1718178144353,0.869,3521.2,3520.7,0.07728403]
[1718178145007,0.869,3521.0,3520.7,0.07728403]
[1718178146437,2.83992,3521.3,3520.8,2.48]
[1718178146438,0.869,3521.3,3520.8,2.48]
[1718178146796,0.869,3521.3,3520.9,0.07715013]
[1718178147897,0.869,3521.3,3520.6,2.84036]
[1718178148137,0.869,3521.3,3520.7,0.07728403]
[1718178150402,3.0,3521.4,3520.7,0.07728403]
[1718178150617,2.4104,3521.5,3520.7,0.07728403]
[1718178150618,0.869,3521.3,3520.7,0.07728403]
[1718178153058,3.869,3521.4,3520.8,2.2755]
[1718178153240,0.869,3521.4,3520.8,2.2755]
[1718178153447,0.869,3521.4,3520.9,0.07451584]
[1718178153945,3.0,3521.6,3520.9,0.07451584]
[1718178154144,0.869,3521.4,3520.9,0.07451584]
[1718178155758,3.0,3521.6,3520.9,0.07451584]
[1718178156057,0.869,3521.5,3520.9,0.07451584]
[1718178171366,0.869,3521.3,3520.9,0.07451584]
[1718178171571,0.869,3521.2,3520.9,0.07451584]
[1718178172369,2.83979,3521.4,3520.7,0.59228001]
[1718178172572,0.869,3521.3,3521.0,0.07449626]
[1718178172769,0.869,3521.3,3520.9,2.4224]
[1718178172983,0.869,3521.3,3521.1,0.07442932]
[1718178173176,0.869,3521.3,3521.0,0.07449626]
[1718178173338,2.83979,3521.4,3521.2,0.07436238]
[1718178173539,3.70879,3521.4,3520.9,2.4224]
[1718178173739,3.70879,3521.4,3521.0,0.07449626]
[1718178177986,0.869,3521.2,3521.0,0.07449626]
[1718178182154,0.869,3521.2,3520.7,0.59228001]
[1718178182487,0.869,3521.2,3520.8,0.07469782]
[1718178188058,0.869,3521.2,3520.6,5.87464001]
[1718178188278,0.869,3521.2,3520.9,0.07463087]
[1718178188490,0.869,3521.2,3520.6,5.87464001]
[1718178188721,0.869,3521.2,3521.0,0.07456392]
[1718178188859,0.869,3521.2,3520.6,5.87464001]
[1718178189058,0.869,3521.2,3521.1,0.07449698]
[1718178189688,0.869,3521.2,3520.6,5.87464001]
[1718178189894,0.869,3521.2,3521.1,0.07449698]
[1718178190376,0.869,3521.2,3520.6,5.87464001]
[1718178190572,0.869,3521.2,3521.1,0.07449698]
[1718178190758,0.869,3521.2,3520.6,5.87464001]
[1718178190960,0.869,3521.2,3520.7,0.07476477]
[1718178201614,2.83994,3521.2,3520.7,0.07476477]
[1718178203183,2.83994,3521.2,3520.7,0.66704478]
[1718178203410,2.83994,3521.2,3520.7,0.07476477]
[1718178208291,2.83994,3521.2,3520.7,0.66704478]
[1718178213893,0.869,3520.8,3520.7,0.07476477]
[1718178214613,2.84038,3520.7,3520.3,0.59228001]
[1718178214934,0.869,3520.5,3520.2,0.59228001]
[1718178215170,0.869,3520.5,3520.1,3.09048001]
[1718178216820,0.869,3520.5,3520.1,0.59228001]
[1718178217905,0.869,3520.5,3520.0,0.59228001]
[1718178219212,0.869,3520.5,3519.9,3.06678001]
[1718178219408,0.869,3520.5,3520.1,0.07306768]
[1718178219609,0.869,3520.5,3520.0,0.07313467]
[1718178219802,0.869,3520.5,3520.2,0.0730007]
[1718178220006,0.869,3520.5,3520.1,0.07306768]
[1718178220204,0.869,3520.5,3520.3,0.07293373]
[1718178220405,0.869,3520.5,3520.2,0.0730007]
[1718178220729,0.869,3520.5,3519.9,3.06678001]
[1718178220730,0.869,3520.5,3520.4,0.07286676]
[1718178220901,0.869,3520.5,3520.3,0.07293373]
[1718178221103,0.869,3520.5,3520.4,0.07045261]
[1718178221613,0.869,3520.5,3520.4,0.07036821]
[1718178222232,0.869,3520.5,3519.9,3.06678001]
[1718178222626,0.869,3520.5,3520.0,0.07063612]
[1718178224402,5.18268,3520.7,3520.0,0.07063612]
[1718178224598,5.18268,3520.7,3520.0,0.47321973]
[1718178224841,0.869,3520.6,3520.0,0.47321973]
[1718178225139,0.869,3520.6,3520.0,1.06549974]
[1718178225329,0.869,3520.6,3520.0,0.47321973]
[1718178230120,0.819,3520.6,3520.0,0.47321973]
[1718178230318,0.819,3520.6,3520.1,0.35399997]
[1718178230516,0.819,3520.6,3520.0,0.07063612]
[1718178230720,0.819,3520.6,3520.2,0.07050215]
[1718178230954,0.819,3520.6,3520.1,0.07056913]
[1718178231154,0.819,3520.6,3519.9,3.06678001]
[1718178231155,0.819,3520.6,3520.3,0.07043518]
[1718178231453,0.819,3520.6,3519.9,3.06678001]
[1718178231756,0.819,3520.6,3520.4,0.07036821]
[1718178231955,0.819,3520.6,3519.9,2.4745]
[1718178232318,0.819,3520.6,3520.0,0.07063612]
[1718178238228,5.18268,3520.7,3520.0,0.66291613]
[1718178238435,6.05168,3520.7,3520.0,0.66291613]
[1718178239165,6.05168,3520.7,3520.0,0.07063612]
[1718178239533,6.05168,3520.7,3520.0,0.66291613]
[1718178239760,6.05168,3520.7,3520.0,0.07063612]
[1718178240066,3.70938,3520.7,3520.0,0.07063612]
[1718178240232,3.70938,3520.7,3520.0,0.66291613]
[1718178242077,7.49,3520.9,3520.2,2.84073]
[1718178242231,7.49,3520.9,3520.3,2.3713]
[1718178242436,7.49,3520.9,3520.4,2.84058]
[1718178242639,7.49,3520.9,3520.4,2.91079993]
[1718178247726,0.869,3521.0,3520.4,2.91079993]
[1718178249713,5.3132,3521.2,3520.4,2.91079993]
[1718178250019,0.869,3520.9,3520.4,2.91079993]
[1718178250584,0.869,3521.0,3520.4,2.91079993]
[1718178251393,5.3132,3521.2,3520.4,4.37207994]
[1718178251592,6.1822,3521.2,3520.4,3.50307994]
[1718178261709,6.1822,3521.2,3520.4,2.91079993]
[1718178267456,6.1822,3521.2,3520.4,3.50307994]
[1718178268018,6.1822,3521.2,3520.4,2.91079993]
[1718178269615,6.1822,3521.2,3520.4,3.50307994]
[1718178274659,6.1822,3521.2,3520.4,2.91079993]
[1718178275041,6.1822,3521.2,3520.4,3.50307994]
[1718178276714,5.3132,3521.2,3520.4,3.50307994]
[1718178276937,0.869,3521.1,3520.5,2.4849]
[1718178277121,0.869,3521.1,3520.5,2.55498556]
[1718178277934,0.869,3521.1,3520.5,3.14726557]
[1718178278915,3.0,3521.2,3520.6,2.4936]
[1718178279111,3.0,3521.2,3520.6,2.56361859]
[1718178280059,7.49,3521.3,3520.6,2.56361859]
[1718178280227,7.49,3521.3,3520.8,2.4936]
[1718178280654,7.49,3521.3,3520.9,0.06981773]
[1718178280815,7.49,3521.3,3521.0,2.4936]
[1718178281019,5.83962,3521.6,3521.0,2.4936]
[1718178281221,5.83962,3521.6,3521.1,0.06968383]
[1718178281453,6.70862,3521.6,3521.1,0.06968383]
[1718178281754,3.869,3521.6,3521.1,0.06968383]
[1718178281929,0.869,3521.6,3521.1,0.06968383]
[1718178282543,7.49,3521.8,3521.2,2.2898]
[1718178282763,7.49,3521.8,3521.2,2.35910132]
[1718178283127,8.359,3521.8,3521.2,2.35910132]
[1718178285839,0.869,3521.8,3521.2,2.35910132]
[1718178291156,3.0,3521.9,3521.2,2.35910132]
[1718178296241,0.869,3521.8,3521.2,2.35910132]
[1718178298171,0.869,3521.6,3521.2,0.06930132]
[1718178298370,0.869,3521.6,3521.0,2.84008]
[1718178298578,0.869,3521.6,3521.3,0.06896823]
[1718178298785,0.869,3521.6,3521.0,2.84008]
[1718178298947,0.869,3521.6,3521.4,0.0689013]
[1718178299147,0.869,3521.6,3520.9,2.3405]
[1718178299371,0.869,3521.6,3521.5,0.06883438]
[1718178299677,0.869,3521.6,3520.9,2.3405]
[1718178300279,0.869,3521.4,3520.9,2.3405]
[1718178300449,0.869,3521.4,3521.0,0.06916904]
[1718178301295,2.83971,3521.5,3521.0,0.06916904]
[1718178302982,3.70871,3521.5,3521.0,0.06916904]
[1718178303186,4.312781,3521.5,3521.0,0.06916904]
[1718178303357,4.312781,3521.5,3520.8,2.2703]
[1718178303561,0.869,3521.3,3521.1,0.0691021]
[1718178303784,0.869,3521.3,3520.8,2.2703]
[1718178303973,0.869,3521.3,3521.2,0.06903516]
[1718178304296,2.4593,3521.2,3520.4,0.59228001]
[1718178304596,0.869,3520.9,3520.5,0.06732502]
[1718178304979,2.84029,3520.8,3520.1,2.4114]
[1718178305191,0.869,3520.7,3520.6,0.0671781]
[1718178305401,1.239929,3520.7,3520.1,2.4114]
[1718178305603,0.869,3520.7,3520.6,0.0671781]
[1718178305898,0.869,3520.7,3520.1,2.4114]
[1718178306103,0.869,3520.5,3520.2,0.06744596]
[1718178309277,3.70954,3520.5,3520.2,0.06744596]
[1718178309696,3.70954,3520.5,3520.3,0.06776847]
[1718178309998,3.70954,3520.5,3519.8,2.3485]
[1718178310397,3.70954,3520.5,3519.9,0.06803641]
[1718178311800,2.84077,3520.2,3519.9,0.06803641]
[1718178312113,0.869,3520.1,3519.6,2.3774]
[1718178312274,0.869,3520.1,3519.7,0.0681704]
[1718178312918,0.869,3520.1,3519.3,2.4676]
[1718178313084,0.869,3520.1,3519.4,0.0663786]
[1718178315007,5.31327,3520.2,3519.4,0.0663786]
[1718178315166,2.84077,3520.2,3519.4,0.0663786]
[1718178318780,2.8409,3520.0,3519.4,0.0663786]
[1718178320408,0.869,3519.8,3519.4,0.0663786]
[1718178323710,2.84116,3519.7,3519.4,0.0663786]
[1718178324012,2.84116,3519.7,3519.1,2.2598]
[1718178324214,2.84116,3519.7,3519.5,0.06634428]
[1718178324629,2.84116,3519.7,3519.1,2.2598]
[1718178324792,2.84116,3519.7,3519.6,0.06627727]
[1718178324992,2.84116,3519.7,3519.1,2.2598]
[1718178325191,2.84116,3519.7,3519.6,0.06627727]
[1718178325391,2.84116,3519.7,3519.1,2.2598]
[1718178325576,2.84116,3519.7,3519.6,0.06636111]
[1718178325982,2.84116,3519.7,3519.1,2.2598]
[1718178326179,2.84116,3519.7,3519.6,0.06627727]
[1718178326725,2.84116,3519.7,3519.1,2.2598]
[1718178326882,2.84116,3519.7,3519.2,0.06654531]
[1718178329014,2.84116,3519.7,3519.1,1.93194515]
[1718178329178,2.84116,3519.7,3519.3,0.06441934]
[1718178329378,2.84116,3519.7,3519.2,0.06448635]
[1718178329582,2.84116,3519.7,3519.4,0.06435232]
[1718178329897,3.212176,3519.7,3519.3,0.06441934]
[1718178330103,3.212176,3519.7,3519.4,0.06435232]
[1718178330307,3.212176,3519.7,3519.1,1.93194515]
[1718178330508,3.212176,3519.7,3519.2,0.06448635]
[1718178332428,0.869,3519.6,3519.2,0.06448635]
[1718178332722,0.4081176,3519.5,3518.8,2.84181]
[1718178332887,0.869,3519.6,3518.9,0.06472245]
[1718178338537,2.84131,3519.5,3518.9,0.06472245]
[1718178340245,5.18301,3519.5,3518.9,0.06472245]
[1718178350063,2.84157,3519.2,3518.9,0.06472245]
[1718178350260,0.869,3519.1,3518.9,0.06472245]
[1718178350419,0.869,3519.1,3518.5,0.59228001]
[1718178350619,0.869,3519.1,3519.0,0.06268855]
[1718178350819,1.240057,3519.1,3518.5,0.59228001]
[1718178351028,2.84157,3519.2,3519.0,0.06268855]
[1718178351237,2.84157,3519.2,3518.4,0.59228001]
[1718178351762,2.84157,3519.2,3518.5,0.06302374]
[1718178352236,2.84157,3519.2,3518.5,0.65530375]
[1718178352433,2.84157,3519.2,3518.5,0.06302374]
[1718178352939,2.84157,3519.2,3518.5,0.65530375]
[1718178355776,2.84157,3519.2,3518.6,0.59228001]
[1718178356375,2.84157,3519.2,3518.7,0.06288965]
[1718178358053,0.869,3518.9,3518.7,0.06288965]
[1718178358453,0.869,3518.9,3518.3,3.43448001]
[1718178358652,0.869,3518.9,3518.8,0.06083646]
[1718178358858,0.869,3518.9,3518.3,3.43448001]
[1718178359058,0.869,3518.9,3518.8,0.06083646]
[1718178359254,0.869,3518.9,3518.3,3.43448001]
[1718178359468,3.71079,3518.9,3518.8,0.06083646]
[1718178359648,4.315839,3518.9,3518.3,0.59228001]
[1718178360164,2.84197,3518.7,3518.4,0.06110463]
[1718178360366,3.71097,3518.7,3518.2,0.59228001]
[1718178360576,2.84171,3519.1,3518.5,0.06103758]
[1718178360793,3.0,3519.0,3518.4,3.3145]
[1718178361090,3.0,3519.3,3518.7,2.3453]
[1718178361291,3.0,3519.4,3518.7,2.3453]
[1718178361497,3.0,3519.4,3518.8,0.06083646]
[1718178361800,0.869,3519.3,3518.5,5.77966001]
[1718178361996,3.869,3519.3,3518.9,0.06076942]
[1718178362311,5.083936,3519.3,3518.5,5.77966001]
[1718178362495,0.869,3519.3,3519.0,0.06070239]
[1718178362652,0.869,3519.3,3518.5,5.77966001]
[1718178362852,0.869,3519.3,3519.1,0.06063536]
[1718178363049,0.869,3519.3,3518.5,5.77966001]
[1718178363280,0.869,3519.3,3519.2,0.06056834]
[1718178363480,0.914936,3519.3,3518.6,0.59228001]
[1718178363696,1.783936,3519.3,3519.2,0.06056834]
[1718178363892,1.783936,3519.3,3518.6,0.59228001]
[1718178364368,1.783936,3519.3,3518.7,0.06090349]
[1718178364703,1.783936,3519.3,3518.7,0.6531835]
[1718178366905,6.0911396,3519.2,3518.7,0.06090349]
[1718178367201,0.869,3519.1,3518.7,0.06090349]
[1718178367607,0.869,3519.1,3518.4,0.59228001]
[1718178367812,2.84171,3519.0,3518.8,0.06089002]
[1718178367988,2.4697,3518.8,3518.4,0.59228001]
[1718178368183,3.087741,3518.8,3518.3,0.59228001]
[1718178368385,3.087741,3518.8,3518.5,0.06109115]
[1718178368386,2.4697,3518.8,3518.5,0.06109115]
[1718178368595,2.4697,3518.8,3518.4,0.0611582]
[1718178368804,2.4697,3518.8,3518.6,0.0610241]
[1718178369004,2.4697,3518.8,3518.5,0.06109115]
[1718178369206,2.4697,3518.8,3518.7,0.06095706]
[1718178369512,2.4697,3518.8,3518.6,0.0610241]
[1718178369675,2.4697,3518.8,3518.7,0.06095706]
[1718178370011,2.84171,3519.0,3518.4,0.59228001]
[1718178370318,3.57730396,3519.0,3518.7,0.06095706]
[1718178370502,3.57730396,3519.0,3518.5,0.59228001]
[1718178370683,3.57730396,3519.0,3518.8,0.06089002]
[1718178370883,3.57730396,3519.0,3518.5,0.59228001]
[1718178371111,3.57730396,3519.0,3518.9,0.06082299]
[1718178371718,3.57730396,3519.0,3518.5,0.59228001]
[1718178371918,3.57730396,3519.0,3518.9,0.06082299]
[1718178372079,3.57730396,3519.0,3518.5,0.59228001]
[1718178372279,3.57730396,3519.0,3518.9,0.06082299]
[1718178372528,3.57730396,3519.0,3518.5,0.59228001]
[1718178372689,2.84171,3519.0,3518.9,0.06082299]
[1718178373180,2.84171,3519.0,3518.5,0.59228001]
[1718178373380,2.84171,3519.0,3518.9,0.06082299]
[1718178373725,2.84171,3519.0,3518.5,0.59228001]
[1718178374323,2.84171,3519.0,3518.6,0.0610241]
[1718178374990,0.7625296,3519.2,3518.6,0.0610241]
[1718178375194,0.869,3519.3,3518.6,0.0610241]
[1718178375505,0.869,3519.3,3518.6,0.65330411]
[1718178376121,13.33146,3519.4,3518.6,0.65330411]
[1718178376323,0.869,3519.2,3518.6,0.65330411]
[1718178378627,0.869,3519.2,3518.7,0.59228001]
[1718178379010,0.869,3519.2,3518.8,0.06106741]
[1718178379438,0.869,3519.2,3518.7,0.59228001]
[1718178379637,0.869,3519.2,3518.9,0.06100037]
[1718178379936,0.869,3519.2,3518.8,0.06106741]
[1718178380100,0.869,3519.2,3519.0,0.06093334]
[1718178380300,0.869,3519.2,3518.9,0.06100037]
[1718178380501,0.869,3519.2,3519.1,0.06093658]
[1718178380801,2.535006,3519.2,3519.1,0.06093658]
[1718178381019,10.49,3519.4,3518.9,2.4063]
[1718178381220,7.49,3519.4,3519.1,0.06093658]
[1718178381538,7.49,3519.4,3519.0,0.65328362]
[1718178381747,7.49,3519.4,3519.2,0.06086956]
[1718178381906,7.49,3519.4,3519.1,0.06093658]
[1718178382105,7.49,3519.4,3519.3,0.06080254]
[1718178382306,7.49,3519.4,3519.2,0.06086956]
[1718178382539,7.49,3519.4,3519.3,0.06080254]
[1718178383240,7.49,3519.4,3519.0,0.59228001]
[1718178383449,7.49,3519.4,3519.3,0.06080254]
[1718178383744,7.49,3519.4,3519.0,0.59228001]
[1718178383945,7.49,3519.4,3519.3,0.06080254]
[1718178384114,7.49,3519.4,3519.0,0.59228001]
[1718178384315,7.49,3519.4,3519.3,0.06080254]
[1718178384533,7.49,3519.4,3519.0,0.59228001]
[1718178384746,7.49,3519.4,3519.3,0.06080254]
[1718178384917,7.49,3519.4,3519.0,0.59228001]
[1718178385101,7.49,3519.4,3519.3,0.06080254]
[1718178385300,3.0,3519.9,3519.1,3.1316]
[1718178385608,3.0,3519.9,3519.2,0.65314957]
[1718178385938,3.0,3519.9,3519.3,0.59228001]
[1718178386330,3.869,3519.9,3519.4,0.06073553]
[1718178386635,2.60415,3519.8,3519.4,0.06073553]
[1718178388910,2.60415,3519.8,3519.2,0.59228001]
[1718178389222,3.869,3519.9,3519.2,0.59228001]
[1718178389422,3.869,3519.9,3519.3,0.06080254]
[1718178389944,3.869,3519.9,3519.3,0.65308255]
[1718178390137,3.869,3519.9,3519.3,0.06080254]
[1718178392273,3.0,3519.9,3519.3,2.90225254]
[1718178392412,3.0,3519.9,3519.3,3.49453255]
[1718178394216,3.0,3519.9,3519.3,2.90225254]
[1718178394421,3.0,3519.9,3519.3,3.49453255]
[1718178394889,3.0,3519.9,3519.4,2.252]
[1718178395351,3.0,3519.9,3519.5,0.06066851]
[1718178400320,3.0,3520.1,3519.5,0.06066851]
[1718178400647,4.669489,3520.1,3519.5,0.06066851]
[1718178402433,0.869,3520.0,3519.5,0.06066851]
[1718178414478,2.84123,3519.6,3519.5,0.06066851]
[1718178414680,4.26023,3519.6,3518.9,0.59228001]
[1718178414892,0.869,3519.4,3518.8,0.59228001]
[1718178415185,0.869,3519.4,3518.8,0.06573982]
[1718178420369,3.2395,3519.2,3518.8,0.06573982]
[1718178424920,2.3705,3519.2,3518.8,0.06573982]
[1718178425056,3.71047,3519.3,3518.8,0.06573982]
[1718178425559,2.84147,3519.3,3518.9,2.2913]
[1718178429382,0.55,3519.6,3518.9,2.2913]
[1718178429573,3.55,3519.6,3519.0,0.05896172]
[1718178429769,4.51343577,3519.6,3519.0,0.05896172]
[1718178430486,3.0,3519.6,3519.0,0.05896172]
[1718178437754,3.869,3519.6,3519.0,0.05896172]
[1718178438404,7.49,3519.8,3519.5,5.99601]
[1718178438608,7.49,3519.8,3519.6,0.06572488]
[1718178438863,7.49,3520.4,3519.6,0.12433796]
[1718178439139,0.869,3520.3,3519.6,0.06572488]
[1718178439330,10.188605,3520.4,3519.7,0.05838902]
[1718178439638,10.188605,3520.4,3519.8,0.06572114]
[1718178439950,0.869,3520.2,3519.8,0.06572114]
[1718178440242,0.869,3520.2,3519.9,0.05825502]
[1718178440644,3.869,3520.2,3519.8,0.06572114]
[1718178443753,3.0,3520.2,3519.8,0.06572114]
[1718178443933,3.869,3520.3,3519.8,0.06572114]
[1718178444350,3.869,3520.3,3519.9,0.05810132]
[1718178447362,0.869,3520.1,3519.9,0.05810132]
[1718178447567,3.2661,3520.0,3519.8,0.06572114]
[1718178449375,2.84098,3519.9,3519.8,0.06572114]
[1718178449678,3.39098,3519.9,3519.8,0.06572114]
[1718178470566,4.25998,3519.9,3519.8,0.06572114]
[1718178473767,8.230328,3519.9,3519.2,2.3319]
[1718178473967,4.25998,3519.9,3519.2,2.3319]
[1718178474166,3.0,3519.8,3519.3,0.05861696]
[1718178474464,0.869,3519.7,3519.3,0.05861696]
[1718178476592,0.869,3519.5,3519.3,0.05861696]
[1718178477062,0.869,3519.5,3518.8,0.59228001]
[1718178477361,0.869,3519.5,3518.9,0.05888506]
[1718178478272,2.84139,3519.4,3518.9,0.05888506]
[1718178480859,2.84139,3519.4,3519.0,2.4273]
[1718178481376,2.84139,3519.4,3519.1,0.058751]
[1718178485376,2.84116,3519.7,3519.1,0.058751]
[1718178485583,0.869,3519.6,3519.1,0.058751]
[1718178489479,0.869,3519.6,3518.8,1.07575001]
[1718178489686,0.869,3519.6,3518.9,0.29836332]
[1718178489993,0.869,3519.6,3519.0,0.0588815]
[1718178493799,2.84131,3519.5,3519.0,0.0588815]
[1718178494190,2.84131,3519.5,3518.9,0.29836332]
[1718178494398,2.84131,3519.5,3519.0,0.0588815]
[1718178494782,2.84131,3519.5,3518.9,0.29836332]
[1718178494990,2.84131,3519.5,3519.0,0.05896503]
[1718178495199,2.84131,3519.5,3518.9,0.29836332]
[1718178495407,2.84131,3519.5,3519.1,0.058888]
[1718178495701,2.84131,3519.5,3518.9,0.29836332]
[1718178495702,2.84131,3519.5,3519.2,0.05882098]
[1718178495864,2.84131,3519.5,3518.8,0.59228001]
[1718178496068,2.84131,3519.5,3518.9,0.05902206]
[1718178500786,2.84155,3519.2,3518.9,0.05902206]
[1718178500984,3.71055,3519.2,3518.9,0.05902206]
[1718178505826,2.84155,3519.2,3518.9,0.05902206]
[1718178532116,0.869,3519.0,3518.9,0.05902206]